[Event "*** Titled Tuesday Blitz"]
[Site "Chess.com"]
[Date "2020.11.10"]
[Round "7"]
[White "lucachess49"]
[Black "Grineva_Marianna"]
[Result "1-0"]
[WhiteElo "2360"]
[BlackElo "2232"]
[TimeControl "180+1"]
[EndTime "11:22:58 PST"]
[Termination "lucachess49 won by checkmate"]

1. d4 {[%clk 0:02:59.1]} 1... f5 {[%clk 0:02:59.2]} 2. c4 {[%clk 0:02:58.9]}
2... Nf6 {[%clk 0:02:58.6]} 3. Nc3 {[%clk 0:02:58]} 3... g6 {[%clk 0:02:58.9]}
4. Nf3 {[%clk 0:02:57.4]} 4... Bg7 {[%clk 0:02:59]} 5. g3 {[%clk 0:02:58.3]}
5... d6 {[%clk 0:02:59]} 6. Bg2 {[%clk 0:02:59.2]} 6... O-O {[%clk 0:02:59]} 7.
O-O {[%clk 0:02:59.8]} 7... Qe8 {[%clk 0:02:57.2]} 8. Re1 {[%clk 0:02:57.7]}
8... Qf7 {[%clk 0:02:45.8]} 9. Qb3 {[%clk 0:02:35.9]} 9... h6 {[%clk 0:02:32.3]}
10. d5 {[%clk 0:01:34]} 10... Na6 {[%clk 0:02:11.6]} 11. Nd4 {[%clk 0:01:22.5]}
11... Nc5 {[%clk 0:02:10.4]} 12. Qc2 {[%clk 0:01:22]} 12... Nfe4 {[%clk
0:02:03]} 13. Nxe4 {[%clk 0:01:19.9]} 13... Bxd4 {[%clk 0:02:01.7]} 14. Nxc5
{[%clk 0:01:18]} 14... Bxc5 {[%clk 0:02:02.6]} 15. Bxh6 {[%clk 0:01:11.2]} 15...
Bd7 {[%clk 0:01:54.8]} 16. a3 {[%clk 0:00:56.1]} 16... Qf6 {[%clk 0:01:38.2]}
17. Bxf8 {[%clk 0:00:49.7]} 17... Rxf8 {[%clk 0:01:37.3]} 18. e3 {[%clk
0:00:43.7]} 18... a5 {[%clk 0:01:35.8]} 19. b4 {[%clk 0:00:36]} 19... axb4
{[%clk 0:01:35.1]} 20. axb4 {[%clk 0:00:36.9]} 20... Bxb4 {[%clk 0:01:35.2]} 21.
Reb1 {[%clk 0:00:36.9]} 21... c5 {[%clk 0:01:19.7]} 22. dxc6 {[%clk 0:00:25.5]}
22... Bxc6 {[%clk 0:01:19.4]} 23. Ra7 {[%clk 0:00:20.8]} 23... Bc5 {[%clk
0:01:14.7]} 24. Ra2 {[%clk 0:00:12.7]} 24... e5 {[%clk 0:00:58.2]} 25. Bxc6
{[%clk 0:00:09.1]} 25... bxc6 {[%clk 0:00:59.1]} 26. Ra6 {[%clk 0:00:09.6]}
26... f4 {[%clk 0:00:55.4]} 27. exf4 {[%clk 0:00:08]} 27... exf4 {[%clk
0:00:55.9]} 28. Rf1 {[%clk 0:00:08]} 28... fxg3 {[%clk 0:00:49.6]} 29. hxg3
{[%clk 0:00:08.9]} 29... Rf7 {[%clk 0:00:45.7]} 30. Rxc6 {[%clk 0:00:08]} 30...
Kg7 {[%clk 0:00:45.5]} 31. Qe4 {[%clk 0:00:07.2]} 31... Qg5 {[%clk 0:00:36.1]}
32. Kg2 {[%clk 0:00:07.1]} 32... Re7 {[%clk 0:00:31.7]} 33. Qd5 {[%clk
0:00:06.5]} 33... Qf6 {[%clk 0:00:22.8]} 34. Rc8 {[%clk 0:00:05.7]} 34... Rf7
{[%clk 0:00:20.7]} 35. f4 {[%clk 0:00:04.3]} 35... Qb2+ {[%clk 0:00:20.1]} 36.
Kh3 {[%clk 0:00:04.4]} 36... Qe2 {[%clk 0:00:17.3]} 37. Qf3 {[%clk 0:00:03.7]}
37... Qe6+ {[%clk 0:00:16.3]} 38. Qg4 {[%clk 0:00:04.1]} 38... Qf6 {[%clk
0:00:15.3]} 39. Re8 {[%clk 0:00:03.4]} 39... Qc3 {[%clk 0:00:14.5]} 40. Re6
{[%clk 0:00:03.2]} 40... Rf6 {[%clk 0:00:13.9]} 41. Rxf6 {[%clk 0:00:03.3]}
41... Qxf6 {[%clk 0:00:14.7]} 42. Re1 {[%clk 0:00:03.8]} 42... Qf7 {[%clk
0:00:13.1]} 43. Re6 {[%clk 0:00:03.7]} 43... Bf2 {[%clk 0:00:11.7]} 44. Qe2
{[%clk 0:00:03.7]} 44... Qf5+ {[%clk 0:00:09.1]} 45. g4 {[%clk 0:00:03.9]} 45...
Qc5 {[%clk 0:00:06.6]} 46. Re7+ {[%clk 0:00:03.7]} 46... Kg8 {[%clk 0:00:02.2]}
47. Qe6+ {[%clk 0:00:03.5]} 47... Kh8 {[%clk 0:00:01.5]} 48. Re8+ {[%clk
0:00:03.4]} 48... Kh7 {[%clk 0:00:01.6]} 49. Qe7+ {[%clk 0:00:03.8]} 49... Kh6
{[%clk 0:00:02.1]} 50. g5+ {[%clk 0:00:04.1]} 50... Kh5 {[%clk 0:00:02.2]} 51.
Rh8# {[%clk 0:00:05]} 1-0

[Event "*** Titled Tuesday Blitz"]
[Site "Chess.com"]
[Date "2020.11.10"]
[Round "7"]
[White "Gabrielian_Artur"]
[Black "Orest_Vovk"]
[Result "0-1"]
[WhiteElo "2769"]
[BlackElo "2597"]
[TimeControl "180+1"]
[EndTime "11:22:59 PST"]
[Termination "Orest_Vovk won by resignation"]

1. e4 {[%clk 0:03:00.9]} 1... Nc6 {[%clk 0:02:59.9]} 2. Nc3 {[%clk 0:02:58.8]}
2... Nf6 {[%clk 0:02:58.7]} 3. d4 {[%clk 0:02:57.3]} 3... e5 {[%clk 0:02:58.3]}
4. dxe5 {[%clk 0:02:55.1]} 4... Nxe5 {[%clk 0:02:58.3]} 5. Nf3 {[%clk
0:02:54.5]} 5... Nxf3+ {[%clk 0:02:53.7]} 6. Qxf3 {[%clk 0:02:54.2]} 6... Bb4
{[%clk 0:02:53.6]} 7. Bd2 {[%clk 0:02:53.8]} 7... d6 {[%clk 0:02:48.6]} 8. a3
{[%clk 0:02:49.2]} 8... Ba5 {[%clk 0:02:38.9]} 9. Bd3 {[%clk 0:02:43.2]} 9...
O-O {[%clk 0:02:28.7]} 10. O-O {[%clk 0:02:42.9]} 10... Ng4 {[%clk 0:02:10.2]}
11. Qg3 {[%clk 0:02:41.6]} 11... Ne5 {[%clk 0:02:03.2]} 12. Rad1 {[%clk
0:02:38]} 12... Nxd3 {[%clk 0:01:58.9]} 13. cxd3 {[%clk 0:02:37.8]} 13... Bxc3
{[%clk 0:01:57.1]} 14. Bxc3 {[%clk 0:02:37.5]} 14... f6 {[%clk 0:01:57.2]} 15.
f4 {[%clk 0:02:36.6]} 15... Be6 {[%clk 0:01:54.8]} 16. f5 {[%clk 0:02:36.5]}
16... Bb3 {[%clk 0:01:54.6]} 17. Rde1 {[%clk 0:02:36]} 17... Qe7 {[%clk
0:01:41.1]} 18. Rf4 {[%clk 0:02:34.9]} 18... Rae8 {[%clk 0:01:31]} 19. Rh4
{[%clk 0:02:30.2]} 19... Kh8 {[%clk 0:01:07.2]} 20. Qh3 {[%clk 0:02:28.4]} 20...
Bg8 {[%clk 0:01:07]} 21. Re3 {[%clk 0:02:23.6]} 21... d5 {[%clk 0:01:01]} 22. e5
{[%clk 0:02:10.3]} 22... fxe5 {[%clk 0:01:00.8]} 23. Bxe5 {[%clk 0:01:59.4]}
23... Qxe5 {[%clk 0:00:58.8]} 24. Rxe5 {[%clk 0:01:59]} 24... Rxe5 {[%clk
0:00:59.7]} 25. Rf4 {[%clk 0:01:54.3]} 25... c5 {[%clk 0:00:52.5]} 26. Qf3
{[%clk 0:01:47]} 26... Rf6 {[%clk 0:00:26.7]} 27. Qf2 {[%clk 0:01:46.8]} 27...
d4 {[%clk 0:00:24.8]} 28. g4 {[%clk 0:01:47]} 28... Bd5 {[%clk 0:00:19]} 29. g5
{[%clk 0:01:40.3]} 29... Rf8 {[%clk 0:00:18.4]} 30. h4 {[%clk 0:01:39.3]} 30...
Rfe8 {[%clk 0:00:18.1]} 31. Kf1 {[%clk 0:01:18.8]} 31... Re3 {[%clk 0:00:13.7]}
32. f6 {[%clk 0:01:15.5]} 32... Rh3 {[%clk 0:00:13.5]} 33. Re4 {[%clk
0:01:08.5]} 33... Bxe4 {[%clk 0:00:07.8]} 34. dxe4 {[%clk 0:01:02.6]} 34... Re3
{[%clk 0:00:05.5]} 35. f7 {[%clk 0:00:41]} 35... Rf8 {[%clk 0:00:05.5]} 36. Qf5
{[%clk 0:00:38.3]} 36... d3 {[%clk 0:00:04.9]} 37. Kf2 {[%clk 0:00:25.1]} 37...
d2 {[%clk 0:00:04.8]} 38. Qd5 {[%clk 0:00:22.2]} 38... Rxe4 {[%clk 0:00:04.9]}
39. Qxd2 {[%clk 0:00:18.9]} 39... Re7 {[%clk 0:00:03.9]} 40. Kg3 {[%clk
0:00:17.6]} 40... Rexf7 {[%clk 0:00:04.2]} 41. Qd5 {[%clk 0:00:17.9]} 41... Rf3+
{[%clk 0:00:03.9]} 42. Qxf3 {[%clk 0:00:17.7]} 42... Rxf3+ {[%clk 0:00:03.8]}
43. Kxf3 {[%clk 0:00:18.6]} 43... Kg8 {[%clk 0:00:04.4]} 44. Ke4 {[%clk
0:00:19.5]} 44... Kf7 {[%clk 0:00:04.7]} 45. Kd5 {[%clk 0:00:20.4]} 45... Kg6
{[%clk 0:00:04.3]} 46. Kxc5 {[%clk 0:00:20]} 46... Kh5 {[%clk 0:00:04.9]} 47.
Kd6 {[%clk 0:00:20.3]} 47... Kxh4 {[%clk 0:00:05.4]} 48. Kc7 {[%clk 0:00:21.2]}
48... Kxg5 {[%clk 0:00:05.7]} 49. Kxb7 {[%clk 0:00:22.1]} 49... h5 {[%clk
0:00:06.6]} 50. b4 {[%clk 0:00:23]} 50... h4 {[%clk 0:00:07.5]} 51. Kxa7 {[%clk
0:00:23.7]} 51... h3 {[%clk 0:00:08.4]} 52. b5 {[%clk 0:00:24.6]} 52... h2
{[%clk 0:00:09.3]} 53. b6 {[%clk 0:00:25.5]} 53... h1=Q {[%clk 0:00:10.1]} 54.
b7 {[%clk 0:00:26.4]} 54... Qg1+ {[%clk 0:00:09.6]} 55. Ka8 {[%clk 0:00:25.9]}
55... Qg2 {[%clk 0:00:09.9]} 56. Ka7 {[%clk 0:00:26.4]} 56... Qg3 {[%clk
0:00:09.8]} 57. b8=Q {[%clk 0:00:26.1]} 57... Qxa3+ {[%clk 0:00:09.7]} 58. Kb7
{[%clk 0:00:25.8]} 58... Qb3+ {[%clk 0:00:10.3]} 59. Kc7 {[%clk 0:00:26.5]}
59... Qxb8+ {[%clk 0:00:11.2]} 0-1

[Event "*** Titled Tuesday Blitz"]
[Site "Chess.com"]
[Date "2020.11.10"]
[Round "7"]
[White "Sanan_Sjugirov"]
[Black "NewBornNow"]
[Result "1-0"]
[WhiteElo "2835"]
[BlackElo "2649"]
[TimeControl "180+1"]
[EndTime "11:23:01 PST"]
[Termination "Sanan_Sjugirov won by resignation"]

1. e4 {[%clk 0:03:00.9]} 1... c5 {[%clk 0:02:59.4]} 2. Nf3 {[%clk 0:03:00.5]}
2... d6 {[%clk 0:02:59.2]} 3. Bb5+ {[%clk 0:02:58.6]} 3... Bd7 {[%clk
0:02:54.1]} 4. Bxd7+ {[%clk 0:02:57.2]} 4... Qxd7 {[%clk 0:02:54.4]} 5. O-O
{[%clk 0:02:57]} 5... Nf6 {[%clk 0:02:54]} 6. d4 {[%clk 0:02:54.4]} 6... cxd4
{[%clk 0:02:52.9]} 7. Qxd4 {[%clk 0:02:55.3]} 7... Nc6 {[%clk 0:02:52.5]} 8. Qd3
{[%clk 0:02:55.3]} 8... g6 {[%clk 0:02:42.6]} 9. c4 {[%clk 0:02:53.5]} 9... Bg7
{[%clk 0:02:42.8]} 10. h3 {[%clk 0:02:52.5]} 10... O-O {[%clk 0:02:42.8]} 11.
Nc3 {[%clk 0:02:51.6]} 11... Rfc8 {[%clk 0:02:38.2]} 12. Bg5 {[%clk 0:02:37.2]}
12... h6 {[%clk 0:02:28.3]} 13. Bd2 {[%clk 0:02:17.5]} 13... Nb4 {[%clk
0:02:16.2]} 14. Qe2 {[%clk 0:02:15.9]} 14... Qe6 {[%clk 0:02:15.7]} 15. b3
{[%clk 0:02:11.5]} 15... Nd7 {[%clk 0:02:13.2]} 16. Rad1 {[%clk 0:02:07]} 16...
Nc5 {[%clk 0:02:08.6]} 17. Nb5 {[%clk 0:01:35.9]} 17... Nc6 {[%clk 0:02:00.8]}
18. Rfe1 {[%clk 0:01:33.1]} 18... a6 {[%clk 0:01:47.3]} 19. Nc3 {[%clk
0:01:11.1]} 19... b5 {[%clk 0:01:37.3]} 20. cxb5 {[%clk 0:01:00.3]} 20... axb5
{[%clk 0:01:36.9]} 21. Qxb5 {[%clk 0:00:59.3]} 21... Bxc3 {[%clk 0:01:34.2]} 22.
Bxc3 {[%clk 0:00:58.1]} 22... Rxa2 {[%clk 0:01:33.8]} 23. e5 {[%clk 0:00:47.5]}
23... Qxb3 {[%clk 0:01:21]} 24. Qxb3 {[%clk 0:00:46.7]} 24... Nxb3 {[%clk
0:01:21.1]} 25. exd6 {[%clk 0:00:47.2]} 25... exd6 {[%clk 0:01:20.8]} 26. Rxd6
{[%clk 0:00:47.8]} 26... Raa8 {[%clk 0:01:11.2]} 27. Bf6 {[%clk 0:00:40.9]}
27... Nc5 {[%clk 0:00:52.4]} 28. Nh2 {[%clk 0:00:22.2]} 28... h5 {[%clk
0:00:43.9]} 29. Nf3 {[%clk 0:00:21]} 29... Ne6 {[%clk 0:00:43.9]} 30. Nd2 {[%clk
0:00:15.5]} 30... Ng7 {[%clk 0:00:31]} 31. Ba1 {[%clk 0:00:10.6]} 31... Ne8
{[%clk 0:00:24.7]} 32. Rd7 {[%clk 0:00:09.8]} 32... Rd8 {[%clk 0:00:24.4]} 33.
Rxd8 {[%clk 0:00:04.8]} 33... Rxd8 {[%clk 0:00:24.1]} 34. Ne4 {[%clk 0:00:05.7]}
34... f5 {[%clk 0:00:20.3]} 35. Ng5 {[%clk 0:00:05]} 35... Ng7 {[%clk
0:00:19.3]} 36. Bxg7 {[%clk 0:00:02.3]} 36... Kxg7 {[%clk 0:00:18.1]} 37. Ne6+
{[%clk 0:00:02.5]} 37... Kf6 {[%clk 0:00:18.6]} 38. Nxd8 {[%clk 0:00:03.2]}
38... Nxd8 {[%clk 0:00:19.5]} 39. h4 {[%clk 0:00:03.7]} 39... Nf7 {[%clk
0:00:19.5]} 40. g3 {[%clk 0:00:03.8]} 40... f4 {[%clk 0:00:19.1]} 41. Kg2 {[%clk
0:00:03.1]} 41... fxg3 {[%clk 0:00:19.4]} 42. fxg3 {[%clk 0:00:03.7]} 42... Nh6
{[%clk 0:00:19.8]} 43. Ra1 {[%clk 0:00:03.6]} 43... Nf5 {[%clk 0:00:19.2]} 44.
Ra6+ {[%clk 0:00:04.5]} 44... Kg7 {[%clk 0:00:18.9]} 45. Kf3 {[%clk 0:00:04.3]}
45... Nd4+ {[%clk 0:00:18]} 46. Kf4 {[%clk 0:00:04.3]} 46... Ne2+ {[%clk
0:00:18.3]} 47. Kg5 {[%clk 0:00:04]} 47... Nxg3 {[%clk 0:00:17.9]} 48. Ra7+
{[%clk 0:00:04.4]} 48... Kf8 {[%clk 0:00:17.1]} 49. Kxg6 {[%clk 0:00:05.3]}
49... Ke8 {[%clk 0:00:17.1]} 50. Ra3 {[%clk 0:00:03.9]} 1-0

[Event "*** Titled Tuesday Blitz"]
[Site "Chess.com"]
[Date "2020.11.10"]
[Round "7"]
[White "mirciulica14"]
[Black "QuintilianoR"]
[Result "1-0"]
[WhiteElo "2644"]
[BlackElo "2687"]
[TimeControl "180+1"]
[EndTime "11:23:02 PST"]
[Termination "mirciulica14 won by resignation"]

1. d4 {[%clk 0:03:00.9]} 1... Nf6 {[%clk 0:02:59.1]} 2. c4 {[%clk 0:03:01.3]}
2... e6 {[%clk 0:02:59.2]} 3. Nf3 {[%clk 0:03:01.6]} 3... b6 {[%clk 0:02:59.2]}
4. a3 {[%clk 0:03:01.6]} 4... Bb7 {[%clk 0:02:58.6]} 5. Nc3 {[%clk 0:03:01.7]}
5... d5 {[%clk 0:02:59]} 6. cxd5 {[%clk 0:03:02.6]} 6... Nxd5 {[%clk 0:02:59.3]}
7. Bd2 {[%clk 0:03:03.2]} 7... Be7 {[%clk 0:02:57.7]} 8. Qc2 {[%clk 0:03:03.5]}
8... O-O {[%clk 0:02:56.7]} 9. Rd1 {[%clk 0:03:03.9]} 9... Nd7 {[%clk 0:02:55]}
10. e4 {[%clk 0:02:50.7]} 10... Nxc3 {[%clk 0:02:51.8]} 11. Bxc3 {[%clk
0:02:51.6]} 11... Qc8 {[%clk 0:02:36.3]} 12. Be2 {[%clk 0:01:48.8]} 12... Re8
{[%clk 0:02:25.2]} 13. O-O {[%clk 0:01:45.6]} 13... Nf6 {[%clk 0:02:14.7]} 14.
e5 {[%clk 0:01:25.8]} 14... Be4 {[%clk 0:01:55.3]} 15. Qc1 {[%clk 0:01:25.8]}
15... Nd5 {[%clk 0:01:54.3]} 16. Nd2 {[%clk 0:01:26.2]} 16... Nxc3 {[%clk
0:01:47.8]} 17. Qxc3 {[%clk 0:01:27.1]} 17... Bd5 {[%clk 0:01:40.4]} 18. Bf3
{[%clk 0:00:48.7]} 18... Qb7 {[%clk 0:01:39.1]} 19. Bxd5 {[%clk 0:00:47.1]}
19... Qxd5 {[%clk 0:01:40]} 20. Nf3 {[%clk 0:00:39.3]} 20... c5 {[%clk
0:01:34.8]} 21. dxc5 {[%clk 0:00:38.1]} 21... Qxc5 {[%clk 0:01:35.7]} 22. Qxc5
{[%clk 0:00:37.4]} 22... Bxc5 {[%clk 0:01:36.6]} 23. Rd7 {[%clk 0:00:32.3]}
23... h6 {[%clk 0:01:31]} 24. Rfd1 {[%clk 0:00:26.9]} 24... a5 {[%clk
0:01:30.3]} 25. Nd2 {[%clk 0:00:25.8]} 25... Red8 {[%clk 0:00:59.6]} 26. Ne4
{[%clk 0:00:19.4]} 26... Rxd7 {[%clk 0:00:59.5]} 27. Rxd7 {[%clk 0:00:20.3]}
27... Rc8 {[%clk 0:00:59.5]} 28. g3 {[%clk 0:00:18.3]} 28... Bf8 {[%clk
0:00:53.5]} 29. Rb7 {[%clk 0:00:18.2]} 29... Rc6 {[%clk 0:00:50.9]} 30. Kg2
{[%clk 0:00:17.3]} 30... Bc5 {[%clk 0:00:35.5]} 31. Nxc5 {[%clk 0:00:08.6]}
31... Rxc5 {[%clk 0:00:35.3]} 32. Rxb6 {[%clk 0:00:08.1]} 32... Rxe5 {[%clk
0:00:35.2]} 33. a4 {[%clk 0:00:08.3]} 33... Kf8 {[%clk 0:00:30.1]} 34. Rb7
{[%clk 0:00:08.1]} 34... Ke8 {[%clk 0:00:28.6]} 35. b3 {[%clk 0:00:08.2]} 35...
h5 {[%clk 0:00:26.9]} 36. h4 {[%clk 0:00:08.3]} 36... Rf5 {[%clk 0:00:26.7]} 37.
Kf1 {[%clk 0:00:07.4]} 37... Kd8 {[%clk 0:00:26.1]} 38. Ke2 {[%clk 0:00:07.1]}
38... Kc8 {[%clk 0:00:26.2]} 39. Ra7 {[%clk 0:00:04.6]} 39... Kd8 {[%clk
0:00:23.7]} 40. Ke3 {[%clk 0:00:04.4]} 40... Ke8 {[%clk 0:00:22.9]} 41. f4
{[%clk 0:00:03.6]} 41... Rd5 {[%clk 0:00:22.2]} 42. Ke4 {[%clk 0:00:03.7]} 42...
g6 {[%clk 0:00:21.1]} 43. Rb7 {[%clk 0:00:03.1]} 43... Rc5 {[%clk 0:00:15.9]}
44. Rb5 {[%clk 0:00:03.2]} 44... Rxb5 {[%clk 0:00:11.2]} 45. axb5 {[%clk
0:00:04.1]} 45... f6 {[%clk 0:00:10.6]} 46. Kd4 {[%clk 0:00:03.9]} 46... Kd7
{[%clk 0:00:11]} 47. Kc5 {[%clk 0:00:03.8]} 47... Kc7 {[%clk 0:00:10.4]} 48. b6+
{[%clk 0:00:03.2]} 48... Kb7 {[%clk 0:00:10.8]} 49. Kb5 {[%clk 0:00:03.7]} 49...
e5 {[%clk 0:00:11.7]} 50. fxe5 {[%clk 0:00:04.5]} 50... fxe5 {[%clk 0:00:12.4]}
51. Kxa5 {[%clk 0:00:05.2]} 51... e4 {[%clk 0:00:12.6]} 52. Kb4 {[%clk
0:00:05.8]} 52... Kxb6 {[%clk 0:00:13.4]} 53. Kc4 {[%clk 0:00:06.5]} 53... Ka5
{[%clk 0:00:12.8]} 54. Kd4 {[%clk 0:00:06.9]} 54... Kb4 {[%clk 0:00:13.1]} 55.
Kxe4 {[%clk 0:00:07.4]} 55... Kxb3 {[%clk 0:00:14]} 56. Kf4 {[%clk 0:00:08]}
56... Kc3 {[%clk 0:00:14.9]} 57. Kg5 {[%clk 0:00:08.7]} 57... Kd3 {[%clk
0:00:15.8]} 58. Kxg6 {[%clk 0:00:09.4]} 58... Ke3 {[%clk 0:00:16.7]} 59. Kxh5
{[%clk 0:00:10]} 1-0

[Event "*** Titled Tuesday Blitz"]
[Site "Chess.com"]
[Date "2020.11.10"]
[Round "7"]
[White "Ranindu2003"]
[Black "Atousa1"]
[Result "0-1"]
[WhiteElo "2535"]
[BlackElo "2421"]
[TimeControl "180+1"]
[EndTime "11:23:03 PST"]
[Termination "Atousa1 won by resignation"]

1. e4 {[%clk 0:03:00.6]} 1... e5 {[%clk 0:02:57.2]} 2. Nf3 {[%clk 0:03:00.7]}
2... Nf6 {[%clk 0:02:55.6]} 3. Nxe5 {[%clk 0:03:00]} 3... d6 {[%clk 0:02:55.1]}
4. Nc4 {[%clk 0:03:00.6]} 4... Nxe4 {[%clk 0:02:55.2]} 5. Qe2 {[%clk 0:03:01.3]}
5... Qe7 {[%clk 0:02:54.2]} 6. Ne3 {[%clk 0:03:01.9]} 6... c6 {[%clk 0:02:50.7]}
7. b3 {[%clk 0:03:00.7]} 7... Nd7 {[%clk 0:02:43.8]} 8. Bb2 {[%clk 0:03:00.3]}
8... Ndf6 {[%clk 0:02:44.1]} 9. g3 {[%clk 0:02:59.9]} 9... Bd7 {[%clk
0:02:17.7]} 10. Bg2 {[%clk 0:02:58.6]} 10... O-O-O {[%clk 0:02:15.7]} 11. O-O
{[%clk 0:02:56.6]} 11... Kb8 {[%clk 0:02:12.6]} 12. Re1 {[%clk 0:02:52.6]} 12...
Nc5 {[%clk 0:02:10.5]} 13. d4 {[%clk 0:02:48.5]} 13... Nce4 {[%clk 0:02:06.4]}
14. f3 {[%clk 0:02:37.9]} 14... Ng5 {[%clk 0:02:06]} 15. h4 {[%clk 0:02:38.3]}
15... Ne6 {[%clk 0:02:06]} 16. Nf5 {[%clk 0:02:38.9]} 16... Qe8 {[%clk
0:02:05.1]} 17. Ba3 {[%clk 0:02:33.8]} 17... d5 {[%clk 0:01:56.4]} 18. Nd6
{[%clk 0:02:02.7]} 18... Bxd6 {[%clk 0:01:54.5]} 19. Bxd6+ {[%clk 0:02:03.6]}
19... Ka8 {[%clk 0:01:55]} 20. Nc3 {[%clk 0:02:03.2]} 20... Bc8 {[%clk
0:01:50.7]} 21. Be5 {[%clk 0:01:49.8]} 21... Nd7 {[%clk 0:01:49.4]} 22. Bd6
{[%clk 0:01:45.3]} 22... Nxd4 {[%clk 0:01:38.9]} 23. Qd2 {[%clk 0:01:40.5]}
23... Ne6 {[%clk 0:01:38.9]} 24. Na4 {[%clk 0:01:40.6]} 24... Nb6 {[%clk
0:01:30]} 25. Nxb6+ {[%clk 0:01:30.6]} 25... axb6 {[%clk 0:01:28.5]} 26. Qb4
{[%clk 0:01:31.1]} 26... Rxd6 {[%clk 0:01:19.4]} 27. Qxd6 {[%clk 0:01:32]} 27...
Qf8 {[%clk 0:01:15.6]} 28. Qxf8 {[%clk 0:01:25.7]} 28... Rxf8 {[%clk 0:01:16.5]}
29. a4 {[%clk 0:01:24.7]} 29... Kb8 {[%clk 0:01:14.7]} 30. c4 {[%clk 0:01:16]}
30... d4 {[%clk 0:01:09.8]} 31. a5 {[%clk 0:01:12.4]} 31... Kc7 {[%clk
0:01:00.4]} 32. axb6+ {[%clk 0:01:09]} 32... Kxb6 {[%clk 0:01:01.3]} 33. b4
{[%clk 0:01:09.7]} 33... c5 {[%clk 0:00:59.4]} 34. Rab1 {[%clk 0:01:01.2]} 34...
d3 {[%clk 0:00:51.9]} 35. Red1 {[%clk 0:00:54.1]} 35... Rd8 {[%clk 0:00:51.4]}
36. Rb3 {[%clk 0:00:50.5]} 36... cxb4 {[%clk 0:00:42.2]} 37. Rbxd3 {[%clk
0:00:44.1]} 37... Rxd3 {[%clk 0:00:42]} 38. Rxd3 {[%clk 0:00:45]} 38... Kc5
{[%clk 0:00:42.7]} 39. Bf1 {[%clk 0:00:42.9]} 39... Nd4 {[%clk 0:00:42.9]} 40.
Kf2 {[%clk 0:00:32.8]} 40... b3 {[%clk 0:00:37.5]} 41. Ke3 {[%clk 0:00:27.7]}
41... b2 {[%clk 0:00:28.3]} 42. Rd1 {[%clk 0:00:26.2]} 42... Bf5 {[%clk
0:00:25.5]} 43. Bd3 {[%clk 0:00:21.9]} 43... Nc2+ {[%clk 0:00:19.1]} 44. Kd2
{[%clk 0:00:17.4]} 44... Bxd3 {[%clk 0:00:19.2]} 45. Rb1 {[%clk 0:00:13.7]}
45... Nb4 {[%clk 0:00:17.5]} 46. Rxb2 {[%clk 0:00:13.5]} 46... Kxc4 {[%clk
0:00:18]} 47. f4 {[%clk 0:00:13.2]} 47... b5 {[%clk 0:00:18.1]} 48. g4 {[%clk
0:00:12.6]} 48... f5 {[%clk 0:00:18.2]} 49. g5 {[%clk 0:00:12.5]} 49... Be4
{[%clk 0:00:18]} 50. h5 {[%clk 0:00:12.7]} 50... Nd5 {[%clk 0:00:18.4]} 51. Ra2
{[%clk 0:00:09.6]} 51... Nxf4 {[%clk 0:00:18.5]} 52. h6 {[%clk 0:00:09.3]} 52...
gxh6 {[%clk 0:00:16.1]} 53. gxh6 {[%clk 0:00:10.2]} 53... Nd5 {[%clk 0:00:15.3]}
54. Ra7 {[%clk 0:00:10.6]} 54... f4 {[%clk 0:00:15]} 55. Ke2 {[%clk 0:00:10.6]}
55... b4 {[%clk 0:00:15.1]} 56. Kf2 {[%clk 0:00:11]} 56... b3 {[%clk 0:00:15.5]}
57. Rb7 {[%clk 0:00:11.5]} 57... Nb4 {[%clk 0:00:15.5]} 58. Rc7+ {[%clk
0:00:10.7]} 58... Kd4 {[%clk 0:00:15.9]} 59. Rb7 {[%clk 0:00:10.1]} 59... Kc3
{[%clk 0:00:16.2]} 60. Rc7+ {[%clk 0:00:09.8]} 60... Nc6 {[%clk 0:00:16.3]} 61.
Rxh7 {[%clk 0:00:08.9]} 61... Bxh7 {[%clk 0:00:15.7]} 0-1